[Event "26th Womens ECCC 2022"]
[Site "Mayrhofen"]
[Date "2022.10.08"]
[Round "6.7"]
[White "Osmak, Yuliia"]
[Black "Mammadova, Gulnar"]
[Result "1-0"]
[ECO "D27"]
[WhiteElo "2428"]
[BlackElo "2389"]
[Annotator "TA"]
[PlyCount "105"]
[EventDate "2022.10.03"]
[EventType "team-tourn"]
[EventCountry "AUT"]
[SourceTitle "playchess.com"]
[Source "ChessBase"]
[SourceQuality "1"]
[TimeControl "40/5400+30:1800+30"]

{[%evp 11,105,35,25,19,12,0,8,-17,0,0,0,2,18,0,0,0,0,0,0,0,7,4,48,35,52,45,49,45,75,63,149,133,128,132,142,67,70,76,76,62,68,87,77,64,58,62,59,56,81,79,79,73,82,77,120,99,180,153,264,257,498,291,498,491,625,625,604,602,633,618,621,572,660,653,657,642,657,650,640,640,625,562,625,616,552,543,1322,1320,1160,1042,827,768,2384,2288,2110,792]} 1. d4 {[%emt 0:00:03]} d5 {[%emt 0:00:09]} 2. c4 {[%emt 0:00:10]} dxc4 {[%emt 0:00:06]} 3. Nf3 {[%emt 0:00:07]} Nf6 {[%emt 0:00:10]} 4. e3 {[%emt 0:00:04]} e6 {[%emt 0:00:04]} 5. Bxc4 {[%emt 0:00:04]} c5 {[%emt 0:00:09]} 6. O-O {[%emt 0:00:09]} a6 {[%emt 0:00:07]} 7. Be2 {[%emt 0:01:17] D27: Queen's Gambit Accepted: Classical main line: 7 e4!? and 7 a4.} Nbd7 {[%emt 0:02:18]} 8. Nc3 {[%emt 0:15:54]} b5 {[%emt 0:00:11]} 9. Ne5 {[%emt 0:12:54] The position is equal.} Nxe5 {[%emt 0:08:26]} 10. dxe5 {[%emt 0:00:07]} Qxd1 {[%emt 0:03:38]} 11. Rxd1 {[%emt 0:00:35]} Nd7 {[%emt 0:00:06]} 12. f4 $36 {[%emt 0:00:42][%mdl 2048] White is pushing.} Bb7 {[%emt 0:00:32] [#]} 13. a4 $146 {[%emt 0:04:38]} ({Predecessor:} 13. Kf2 Be7 14. Bf3 Bxf3 15. Kxf3 O-O-O 16. Bd2 f6 17. exf6 gxf6 18. a4 b4 19. Ne4 {0-1 (51) Noritsyn,N (2512)-Rozhkov,V (2248) Chess.com INT 2021}) 13... b4 {[%emt 0:01:35]} 14. Nb1 {[%emt 0:00:04]} Be7 {[%emt 0:15:04]} 15. Nd2 {[%emt 0:05:37]} f6 {[%emt 0:06:11]} 16. Nc4 {[%emt 0:06:48]} Bd5 {[%emt 0:04:54]} 17. e4 {[%emt 0:15:07]} Bxe4 {[%emt 0:04:31]} 18. Nd6+ {[%emt 0:00:43]} Bxd6 {[%emt 0:00:07]} 19. Rxd6 {[%emt 0:00:04]} Bd5 {[%emt 0:19:39]} 20. Bxa6 {[%emt 0:03:49]} fxe5 {[%emt 0:02:01]} (20... Ke7 $14) 21. Bb5 $16 {[%emt 0:07:27][%csl LRd7,LRe5] A strong pair of Bishops.} O-O-O {[%emt 0:00:08]} 22. Be3 {[%emt 0:00:46]} e4 {[%emt 0:04:37] [#]} 23. Rc1 {[%emt 0:06:51] White has more active pieces.} (23. f5 $1 $16 {[%cal Rf5e6]} Kc7 24. Bf4) 23... Kc7 $1 $14 {[%emt 0:04:31]} 24. Rxd7+ {[%emt 0:09:09]} Rxd7 {[%emt 0:00:05]} 25. Rxc5+ {[%emt 0:01:17]} Kd6 {[%emt 0:00:15] Strongly threatening ...Rdd8.} 26. Bxd7 {[%emt 0:00:32]} Kxd7 {[%emt 0:00:04][%mdl 4096] Endgame KRB-KRB} 27. Rb5 {[%emt 0:00:54]} b3 {[%emt 0:01:22]} 28. a5 {[%emt 0:00:46] Threatens to win with a6.} Ra8 {[%emt 0:03:46]} 29. Bd4 {[%emt 0:01:31]} g6 {[%emt 0:00:50]} 30. Kf2 {[%emt 0:00:13] White stays focused until the end.} Kc6 {[%emt 0:00:47]} 31. Rb6+ {[%emt 0:00:41]} Kd7 {[%emt 0:01:19] [#]} 32. Bc3 {[%emt 0:01:34]} Kc8 {[%emt 0:05:00]} 33. Ke3 {[%emt 0:01:56]} Ra7 {[%emt 0:00:36]} (33... Kd7 $16 {was called for.} 34. g3 Rc8) 34. a6 $18 {[%emt 0:01:46]} Rc7 {[%emt 0:03:25]} (34... Kc7 $16 {might work better.} 35. Ba5 Kd7) 35. Be5 {[%emt 0:00:56]} Rc1 {[%emt 0:01:14]} (35... Ra7 36. Bb8 Rxa6 37. Rxa6 Kxb8) 36. Rb8+ {[%emt 0:01:46]} Kd7 {[%emt 0:00:02] [#]} 37. Rb7+ $1 {[%emt 0:00:21][%mdl 512] White is clearly winning.} Kc8 {[%emt 0:00:16]} (37... Ke8 38. Rxh7) 38. Rxh7 {[%emt 0:00:23]} Re1+ {[%emt 0:00:51]} 39. Kf2 {[%emt 0:00:50]} Ra1 {[%emt 0:01:36]} 40. a7 {[%emt 0:00:38]} e3+ {[%emt 0:00:38]} 41. Kxe3 {[%emt 0:30:24]} Bxg2 {[%emt 0:30:06]} 42. Rc7+ {[%emt 0:01:20]} Kd8 {[%emt 0:01:57]} 43. Rg7 {[%emt 0:00:00]} Bd5 {[%emt 0:00:00]} 44. Kd4 {[%emt 0:00:00]} Kc8 {[%emt 0:00:00]} 45. Kc5 {[%emt 0:00:00] aiming for Kb6.} Be4 {[%emt 0:00:00]} 46. Kb6 {[%emt 0:00:00] White wants to mate with Bf6.} Kd8 {[%emt 0:00:00]} 47. h4 {[%emt 0:00:00]} Ra4 {[%emt 0:00:00]} 48. Bc3 {[%emt 0:00:00]} Rc4 {[%emt 0:00:00][%cal Oc4c3]} 49. Bf6+ {[%emt 0:00:00]} Ke8 {[%emt 0:00:00]} 50. Re7+ {[%emt 0:00:00]} Kf8 {[%emt 0:00:00]} 51. Rxe6 {[%emt 0:00:00]} Bg2 {[%emt 0:00:00]} 52. Be5 {[%emt 0:00:00]} Bd5 {[%emt 0:00:00]} 53. Rd6 {[%emt 0:00:00] Weighted Error Value: White=0.07 (flawless) /Black=0.24 (precise)} (53. Rxg6 $142 Kf7 54. h5) 1-0

[Event "26th Womens ECCC 2022"]
[Site "Mayrhofen"]
[Date "2022.10.08"]
[Round "6.8"]
[White "Balajayeva, Khanim"]
[Black "Maltsevskaya, Aleksandra"]
[Result "1-0"]
[ECO "B22"]
[WhiteElo "2384"]
[BlackElo "2389"]
[Annotator "TA"]
[PlyCount "69"]
[EventDate "2022.10.03"]
[EventType "team-tourn"]
[EventCountry "AUT"]
[SourceTitle "playchess.com"]
[Source "ChessBase"]
[SourceQuality "1"]
[TimeControl "40/5400+30:1800+30"]

{[%evp 9,69,45,73,65,73,72,110,109,139,136,200,202,184,214,191,184,222,204,268,277,272,271,262,294,225,110,99,16,114,0,0,0,0,0,202,204,203,197,200,204,404,-41,-35,-29,-45,-41,461,438,943,929,1000,1004,1114,1069,1712,1191,1308,1282,1308,1296,5303,3487]} 1. e4 {[%emt 0:00:04]} c5 {[%emt 0:00:07]} 2. c3 {[%emt 0:00:04][%cal Bc2c3,Bc3c4][%mdl 32]} d5 {[%emt 0:00:05]} 3. exd5 {[%emt 0:00:05]} Nf6 {[%emt 0:00:06]} 4. Qa4+ {[%emt 0:00:10]} Nbd7 {[%emt 0:00:08]} 5. Qb3 {[%emt 0:01:44]} Nb6 {[%emt 0:03:50]} 6. Bb5+ {[%emt 0:01:39] B22: Sicilian: 2 c3.} Bd7 {[%emt 0:00:13]} 7. c4 $1 {[%emt 0:01:33] [#]} Qc7 $146 {[%emt 0:03:50]} ({Predecessor:} 7... e6 8. dxe6 fxe6 9. Nf3 Bd6 10. d4 O-O 11. dxc5 Bxc5 12. Bxd7 Qxd7 13. O-O Qc7 {1-0 (72) Brinovec,D (2188)-Janzelj,T (2437) Ljubljana 2018}) 8. Nf3 {[%emt 0:02:50] White is better.} O-O-O {[%emt 0:07:50]} 9. Bxd7+ {[%emt 0:02:30]} Qxd7 {[%emt 0:00:52]} (9... Nbxd7 $16 10. O-O e6) 10. O-O $1 $18 {[%emt 0:01:18] Nc3 is the strong threat.} e6 {[%emt 0:01:06]} 11. dxe6 {[%emt 0:02:51]} Qxe6 {[%emt 0:00:11]} 12. Na3 {[%emt 0:00:07]} Qf5 {[%emt 0:16:35]} 13. d4 $1 {[%emt 0:12:51]} cxd4 {[%emt 0:00:08]} 14. Nb5 {[%emt 0:00:24]} Bc5 {[%emt 0:10:35]} 15. Nxa7+ {[%emt 0:00:46]} Kb8 {[%emt 0:00:07]} 16. Nb5 {[%emt 0:00:15] And now a4 would win.} d3 {[%emt 0:00:33]} 17. Bd2 {[%emt 0:10:47]} (17. a4 $1 $18 {[%cal Ra4a5] is more deadly.}) 17... Rhe8 $16 {[%emt 0:04:35]} 18. Bb4 {[%emt 0:06:58]} (18. Rad1 $16) 18... Re2 {[%emt 0:01:56] [#]} (18... Nh5 $11 {keeps the balance.}) 19. Nc3 {[%emt 0:06:20]} (19. Rad1 $1 $16) 19... Ng4 $1 $36 {[%emt 0:06:32][%cal Rc5f2][%mdl 2048] Black fights for an advantage.} 20. Nd1 {[%emt 0:14:25]} (20. Nxe2 dxe2 21. h3 exf1=Q+ 22. Rxf1 Rd3 23. hxg4 Rxb3 24. gxf5 Rxb4 $17) 20... Rd6 {[%emt 0:13:53]} 21. h3 {[%emt 0:02:36]} Nxf2 {[%emt 0:09:19]} 22. Rxf2 $18 {[%emt 0:07:56]} (22. Nxf2 Rg6 23. Kh1 (23. Bxc5 $2 Qxf3 24. Bd6+ Kc8 $19) 23... Bxf2 $11) 22... Bxf2+ {[%emt 0:03:50]} 23. Nxf2 {[%emt 0:00:07]} Rg6 {[%emt 0:00:11] [#] ( -> ...Qxf3)} 24. Kf1 $1 {[%emt 0:06:43][%cal Bg1f1,Bf1e1,Be1d2,Bd2c3,Bc3c2][%mdl 32]} ({Stronger than} 24. Qxd3 Qxd3 25. Nxd3 Rexg2+ 26. Kh1 R2g3 $11) ({Don't blunder} 24. Ng4 $2 h5 25. Nh4 Qe4 $19) 24... Qf4 $2 {[%emt 0:09:45]} (24... Rc6) 25. Bc5 $2 {[%emt 0:10:25] [#]} ({White has to play} 25. Nxd3 $18 Qe4 26. Nf2) 25... Qg3 $15 {[%emt 0:00:44][%csl Gg6][%cal Rg3g2]} 26. Ne1 {[%emt 0:00:59] [#]} Rxe1+ $1 {[%emt 0:02:03]} 27. Kxe1 {[%emt 0:00:02]} Qxg2 $2 {[%emt 0:00:16][%mdl 8192] This costs Black the game.} 28. Bxb6 $18 {[%emt 0:03:30][%cal Bc5b6,Bb6e3,Be3d2][%mdl 32] White is clearly winning.} Re6+ {[%emt 0:02:43]} (28... Qg1+ $142 29. Kd2 Qxa1) 29. Kd2 {[%emt 0:00:05]} Qg5+ {[%emt 0:02:01]} 30. Kc3 {[%emt 0:00:19]} d2 {[%emt 0:00:54]} 31. Nd3 {[%emt 0:00:46]} Rd6 {[%emt 0:00:31]} 32. Kc2 {[%emt 0:00:55] Strongly threatening c5.} Qg6 {[%emt 0:00:28]} 33. Be3 {[%emt 0:00:12]} Kc8 {[%emt 0:00:24]} 34. Bxd2 {[%emt 0:00:37]} f5 {[%emt 0:00:38]} 35. Re1 {[%emt 0:00:29] Weighted Error Value: White=0.39/Black=0.67} 1-0

[Event "26th Womens ECCC 2022"]
[Site "Mayrhofen"]
[Date "2022.10.08"]
[Round "6.9"]
[White "Sukandar, Irine Kharisma"]
[Black "Kashlinskaya, Alina"]
[Result "1-0"]
[ECO "D38"]
[WhiteElo "2401"]
[BlackElo "2482"]
[Annotator "TA"]
[PlyCount "125"]
[EventDate "2022.10.03"]
[EventType "team-tourn"]
[EventCountry "AUT"]
[SourceTitle "playchess.com"]
[Source "ChessBase"]
[SourceQuality "1"]
[TimeControl "40/5400+30:1800+30"]

{[%evp 11,125,15,16,12,13,0,0,0,0,0,-2,-6,0,0,-5,-3,0,0,-7,-5,0,0,0,-10,46,17,37,43,37,37,46,45,53,52,52,30,60,53,75,78,78,83,72,52,56,47,70,72,88,81,75,0,12,16,15,0,12,16,63,63,63,14,63,25,63,63,63,50,63,63,63,63,63,63,63,63,63,63,63,63,63,24,79,33,35,39,92,91,262,261,267,267,302,317,304,285,242,93,178,116,118,116,568,116,116,110,103,72,118,70,297,277,29955,29954,5915,4976]} 1. d4 {[%emt 0:00:26]} Nf6 {[%emt 0:00:06]} 2. c4 {[%emt 0:00:11]} e6 {[%emt 0:00:04]} 3. Nf3 {[%emt 0:00:18]} d5 {[%emt 0:00:13]} 4. Nc3 {[%emt 0:00:18]} Bb4 {[%emt 0:00:05]} 5. Qa4+ {[%emt 0:00:40]} Nc6 {[%emt 0:00:06]} 6. e3 {[%emt 0:00:41]} O-O {[%emt 0:00:09]} 7. Qc2 {[%emt 0:00:21] D38: Queen's Gambit Declined: Ragozin Defence (4 Nf3 Bb4).} b6 {[%emt 0:00:33]} 8. a3 {[%emt 0:05:57]} Bxc3+ {[%emt 0:00:53]} 9. Qxc3 {[%emt 0:00:21] The position is equal.} Ba6 {[%emt 0:01:00]} 10. b4 {[%emt 0:06:44] aiming for b5.} dxc4 {[%emt 0:00:29]} 11. Bxc4 {[%emt 0:00:16]} Ne4 {[%emt 0:00:20]} 12. Qc2 {[%emt 0:00:17]} Bxc4 {[%emt 0:00:21]} 13. Qxc4 {[%emt 0:00:13]} Qd5 {[%emt 0:00:13]} 14. Qxd5 {[%emt 0:03:49]} exd5 {[%emt 0:00:06]} 15. Bd2 {[%emt 0:00:59]} Nd6 {[%emt 0:06:31]} 16. Rc1 {[%emt 0:11:24]} Nc4 {[%emt 0:00:41]} 17. b5 {[%emt 0:00:33] [#]} N6a5 $146 {[%emt 0:24:10]} (17... Nd8 $11) ({Predecessor:} 17... Nd8 18. Bb4 Re8 19. Nd2 a5 20. bxa6 b5 21. a4 Nc6 22. Bc5 Nxd2 23. Kxd2 bxa4 {0-1 (49) Bernabeu Lopez,C (2366)-Arizmendi Martinez,J (2517) Marbella 2019}) 18. Ke2 {[%emt 0:01:14]} (18. Bxa5 $5 Nxa5 19. Rxc7 $14) 18... Nxd2 {[%emt 0:12:22]} 19. Nxd2 {[%emt 0:00:07]} Rac8 {[%emt 0:02:02]} 20. Rc3 {[%emt 0:03:49]} c5 {[%emt 0:03:47]} 21. bxc6 {[%emt 0:05:53] Threatens to win with c7.} Rxc6 {[%emt 0:00:30]} 22. Rxc6 {[%emt 0:01:57]} Nxc6 $14 {[%emt 0:00:05][%mdl 4096] Endgame KRN-KRN} 23. Kd3 {[%emt 0:01:05]} Rc8 {[%emt 0:06:33]} 24. Nb1 {[%emt 0:03:32]} f6 {[%emt 0:04:43]} 25. Nc3 {[%emt 0:00:23]} Ne7 {[%emt 0:00:15]} 26. Rb1 {[%emt 0:00:51]} Rc6 {[%emt 0:04:43]} 27. Rb5 {[%emt 0:10:23]} Rd6 {[%emt 0:00:22]} 28. Rb3 {[%emt 0:00:18]} Rc6 {[%emt 0:03:05]} 29. a4 {[%emt 0:00:54]} Kf7 {[%emt 0:00:38]} 30. a5 {[%emt 0:03:31]} Ke6 {[%emt 0:04:17]} 31. Nb5 {[%emt 0:03:45]} ({Better is} 31. Ra3 $16) 31... bxa5 $11 {[%emt 0:01:46]} 32. Nxa7 {[%emt 0:00:34]} Rc1 {[%emt 0:03:47]} 33. Ra3 {[%emt 0:07:40]} Rg1 {[%emt 0:00:59]} 34. g3 {[%emt 0:00:15]} Rg2 {[%emt 0:00:18]} (34... Rb1 $1 $11) 35. Ke2 $1 $14 {[%emt 0:00:20]} Rxh2 {[%emt 0:00:14]} 36. Rxa5 {[%emt 0:00:07]} (36. Nb5 $1 $14) 36... Rh1 {[%emt 0:02:23]} (36... Nf5 $1 $11 37. Kf3 Nd6) 37. Ra6+ {[%emt 0:01:38]} Kd7 {[%emt 0:02:11]} 38. Nb5 {[%emt 0:00:13]} Rc1 {[%emt 0:01:47]} 39. Kd2 {[%emt 0:03:00] Inhibits Rc2+.} Rf1 {[%emt 0:00:27]} 40. Ra7+ $1 {[%emt 0:01:06]} Kd8 $1 {[%emt 0:01:32]} 41. Ke2 {[%emt 0:40:19]} Rb1 {[%emt 0:37:51]} 42. Nd6 {[%emt 0:05:22]} Rb6 {[%emt 0:02:56]} 43. Nb7+ {[%emt 0:01:09]} Ke8 {[%emt 0:02:54]} 44. Nc5 {[%emt 0:00:26]} g5 {[%emt 0:00:00]} 45. g4 {[%emt 0:00:00]} h6 {[%emt 0:00:00]} 46. Kf3 {[%emt 0:00:00] White is more active.} f5 {[%emt 0:00:00]} (46... Ng6 $11) 47. gxf5 {[%emt 0:00:00]} (47. Nd7 $16 fxg4+ 48. Kxg4) 47... Nxf5 {[%emt 0:00:00]} 48. Kg4 {[%emt 0:00:00]} Ne7 {[%emt 0:00:00]} (48... Rf6 $1 $14) 49. Kh5 $16 {[%emt 0:00:00]} Rf6 $2 {[%emt 0:00:00]} (49... Nf5 $16) 50. Ra8+ $1 $18 {[%emt 0:00:00]} Kf7 {[%emt 0:00:00]} 51. Nd7 {[%emt 0:00:00]} Rd6 {[%emt 0:00:00]} 52. Ne5+ {[%emt 0:00:00]} Kg7 {[%emt 0:00:00]} 53. Ra7 {[%emt 0:00:00]} Kf8 {[%emt 0:00:00]} 54. f3 {[%emt 0:00:00]} (54. f4 $1 $18 {is the precise move to win.}) 54... Ng8 {[%emt 0:00:00]} (54... Re6 $16 55. Ra8+ Kg7) 55. Ng6+ {[%emt 0:00:00]} (55. f4 $1 $18) 55... Ke8 $16 {[%emt 0:00:00]} 56. Rg7 {[%emt 0:00:00]} Nf6+ {[%emt 0:00:00]} 57. Kxh6 {[%emt 0:00:00]} g4 {[%emt 0:00:00] [#]} 58. fxg4 {[%emt 0:00:06]} Nxg4+ {[%emt 0:00:00]} 59. Kg5 {[%emt 0:00:07]} Nf6 {[%emt 0:00:00]} (59... Nf2 $142) 60. Kf5 {[%emt 0:00:35]} (60. Nf4 $16) 60... Ra6 $2 {[%emt 0:00:00] [#]} ({Black should play} 60... Nh5 $1 $14 61. Re7+ Kd8) 61. Nf4 $1 $18 {[%emt 0:01:03] Intending Rg6 and mate.} Kf8 $2 {[%emt 0:09:41]} (61... Ne4 $18 62. Nxd5 Nd6+ 63. Kf4 Ra1 64. Nc7+ Kf8) 62. Rg6 {[%emt 0:00:55]} Kf7 {[%emt 0:01:30]} 63. Nh5 {[%emt 0:00:45] Weighted Error Value: White=0.13 (very precise) /Black=0.36} 1-0

[Event "26th Womens ECCC 2022"]
[Site "Mayrhofen"]
[Date "2022.10.08"]
[Round "6.10"]
[White "Kiolbasa, Oliwia"]
[Black "Houska, Jovanka"]
[Result "1-0"]
[ECO "B12"]
[WhiteElo "2404"]
[BlackElo "2354"]
[Annotator "TA"]
[PlyCount "111"]
[EventDate "2022.10.03"]
[EventType "team-tourn"]
[EventCountry "AUT"]
[SourceTitle "playchess.com"]
[Source "ChessBase"]
[SourceQuality "1"]
[TimeControl "40/5400+30:1800+30"]

{[%evp 11,111,20,28,23,35,18,30,16,63,60,72,52,69,41,73,60,58,53,37,19,45,19,65,54,68,57,71,-44,-32,-121,-93,-215,429,443,418,329,320,304,285,268,260,165,175,150,160,175,169,159,548,541,528,242,690,675,680,658,689,679,687,0,677,683,678,661,649,649,725,720,734,713,734,696,712,682,695,695,751,701,775,777,757,677,887,857,12794,12794,12794,12794,5627,5101,1830,1829,1695,1256,29972,29972,29980,29981,29985,29986,29986,29983]} 1. e4 {[%emt 0:00:03]} c6 {[%emt 0:00:09]} 2. d4 {[%emt 0:00:10]} d5 {[%emt 0:00:04]} 3. e5 {[%emt 0:00:07]} Bf5 {[%emt 0:00:07]} 4. Nf3 {[%emt 0:00:17]} e6 {[%emt 0:00:31]} 5. Be2 {[%emt 0:00:08]} Nd7 {[%emt 0:00:22]} 6. O-O {[%emt 0:00:44]} h6 {[%emt 0:00:44]} 7. a4 {[%emt 0:01:12] B12: Caro-Kann: Advance Variation.} g5 {[%emt 0:01:41]} 8. a5 {[%emt 0:02:52]} a6 {[%emt 0:01:32]} 9. Ne1 {[%emt 0:03:29] White has an edge.} Ne7 {[%emt 0:05:06]} (9... c5 $11) 10. b4 $1 $14 {[%emt 0:00:44]} Qc7 {[%emt 0:03:40] [#]} 11. Na3 $146 {[%emt 0:08:40]} ({Predecessor:} 11. Bh5 Bg6 12. f4 Bg7 13. Nd3 O-O-O 14. Bxg6 Nxg6 15. f5 exf5 16. Rxf5 f6 17. exf6 Nxf6 {0-1 (27) Hagner,B (2186)-Willems,N (2338) Payerne 2022}) 11... Bg6 {[%emt 0:16:41]} 12. c3 {[%emt 0:03:41]} Bg7 {[%emt 0:02:19]} 13. f4 {[%emt 0:08:24]} f6 {[%emt 0:08:06]} 14. Bd3 {[%emt 0:01:30]} O-O-O {[%emt 0:10:28]} 15. Qc2 {[%emt 0:15:36]} Bf5 {[%emt 0:04:11]} 16. Rb1 {[%emt 0:05:00]} gxf4 {[%emt 0:01:03]} (16... Rdf8 $11) 17. exf6 {[%emt 0:02:55]} Nxf6 {[%emt 0:09:04]} 18. Bxf4 {[%emt 0:00:30]} Qd7 {[%emt 0:00:05]} 19. b5 {[%emt 0:11:01] White is more active.} ({Better is} 19. Bxf5 $16 Nxf5 20. Nd3) 19... cxb5 $15 {[%emt 0:11:15]} 20. Nxb5 {[%emt 0:00:36]} axb5 $17 {[%emt 0:01:24]} 21. Qa2 {[%emt 0:00:09]} (21. Be5 $17) 21... Qc6 $4 {[%emt 0:04:14][%mdl 8192]} (21... Bxd3 $1 $19 22. Nxd3 Ne4) 22. Bxb5 $18 {[%emt 0:06:23]} Bxb1 {[%emt 0:00:48]} 23. Qxb1 {[%emt 0:00:05]} Qxc3 {[%emt 0:01:35] [#]} 24. Nf3 {[%emt 0:00:09]} Ne4 {[%emt 0:06:53]} 25. Rc1 {[%emt 0:01:22]} Rhf8 {[%emt 0:00:47]} 26. Rxc3+ $40 {[%emt 0:08:12][%mdl 128] White is out for blood.} Nxc3 {[%emt 0:00:05]} 27. Qc1 {[%emt 0:00:10][%csl LRc3,LRh6] Really sharp!} Rxf4 {[%emt 0:01:14]} 28. Qxc3+ {[%emt 0:00:15]} Kb8 {[%emt 0:00:07] [#]} 29. a6 $1 {[%emt 0:00:12]} bxa6 {[%emt 0:08:32]} (29... Nc8 $16 {is a better chance.}) 30. Bxa6 {[%emt 0:01:07]} Rd7 {[%emt 0:01:07]} 31. Qc5 {[%emt 0:06:43]} ({Weaker is} 31. g3 Rxf3 32. Qxf3 Bxd4+ 33. Kg2 Kc7 $18) (31. Qa5 $142 {Hoping for Qb5+.} Re4 32. Qb6+ Ka8 33. Qb5) 31... Re4 $2 {[%emt 0:01:08]} (31... Ka8 32. Qb6 Rf8 33. Qxe6 Rc7) 32. Qb5+ {[%emt 0:03:11]} Kc7 {[%emt 0:00:04]} 33. Qb7+ {[%emt 0:00:29]} Kd6 {[%emt 0:00:08]} 34. Qb6+ {[%emt 0:00:24]} Nc6 {[%emt 0:00:29][%cal Rg7d4]} 35. Qc5+ {[%emt 0:01:56]} Kc7 {[%emt 0:00:08][%cal Rg7d4]} 36. Bb5 {[%emt 0:00:12]} Rd6 {[%emt 0:01:53][%cal Rg7d4]} 37. Bxc6 {[%emt 0:00:13]} Rxc6 {[%emt 0:00:07]} 38. Qa7+ {[%emt 0:00:29][%mdl 64] Skewer} Kd6 {[%emt 0:01:05]} 39. Qxg7 {[%emt 0:00:11]} Rc1+ {[%emt 0:00:14]} 40. Kf2 {[%emt 0:00:07]} Rc2+ {[%emt 0:00:41]} 41. Kg3 {[%emt 0:30:45]} Ree2 {[%emt 0:03:39]} 42. Kh3 {[%emt 0:00:00] Strongly threatening Ne5.} Kc6 {[%emt 0:01:41]} 43. Qxh6 {[%emt 0:00:00]} Kb5 {[%emt 0:00:14]} 44. Qg7 {[%emt 0:00:00]} Kc4 {[%emt 0:01:13]} 45. Qc7+ {[%emt 0:00:00]} Kd3 {[%emt 0:08:23]} 46. Qf4 {[%emt 0:00:00]} Kc4 {[%emt 0:05:14]} 47. g4 {[%emt 0:00:00]} Re4 {[%emt 0:02:45]} 48. Nd2+ {[%emt 0:00:00]} Kd3 {[%emt 0:00:06]} 49. Nxe4 {[%emt 0:00:00]} dxe4 {[%emt 0:00:03][%mdl 4096] Endgame KQ-KR} 50. Qf1+ {[%emt 0:00:00]} Kd2 {[%emt 0:01:05]} 51. Qf2+ {[%emt 0:02:24]} Kd3 {[%emt 0:01:29]} 52. Qe1 {[%emt 0:01:22]} Re2 {[%emt 0:02:43]} 53. Qb1+ {[%emt 0:00:42] White mates.} Kd2 {[%emt 0:01:42]} 54. g5 {[%emt 0:03:46][%cal Bg4g5,Bg5g6][%mdl 32]} e3 {[%emt 0:01:40]} 55. g6 {[%emt 0:01:07]} Re1 {[%emt 0:01:13] [#]} 56. Qxe1+ $3 {[%emt 0:00:25] Weighted Error Value: White=0.35/Black=0.60} 1-0